[Event "15th Deltalift Open 2018"]
[Site "Halmstad"]
[Date "2018.05.12"]
[Round "8"]
[White "Holst, Conny"]
[Black "Blomstrom, Lars"]
[Result "1/2-1/2"]
[ECO "E70"]
[WhiteElo "2087"]
[BlackElo "2163"]
[Annotator "NA"]
[PlyCount "100"]
[EventDate "2018.??.??"]
[EventType "swiss"]
[EventCountry "SWE"]
[SourceTitle "playchess.com"]
[Source "ChessBase"]
[SourceQuality "1"]
[TimeControl "1800+12"]

1. d4 {[%emt 0:00:00]} Nf6 {[%emt 0:00:00]} 2. c4 {[%emt 0:00:00]} g6 {[%emt 0:00:00]} 3. Nc3 {[%emt 0:00:00]} Bg7 {[%emt 0:00:00]} 4. e4 {[%emt 0:00:00]} d6 {[%emt 0:00:00]} 5. Nge2 {[%emt 0:00:00]} O-O {[%emt 0:00:00]} 6. Ng3 {[%emt 0:00:00]} e5 {[%emt 0:00:00]} 7. d5 {[%emt 0:00:00]} a5 {[%emt 0:00:00]} 8. Be2 {[%emt 0:00:00]} Na6 {[%emt 0:00:00]} 9. h4 {[%emt 0:00:00]} h5 {[%emt 0:00:00]} 10. Bg5 {[%emt 0:00:00]} Qe8 {[%emt 0:00:00]} 11. Qd2 {[%emt 0:00:00]} Nh7 {[%emt 0:00:00]} 12. Be3 {[%emt 0:00:00] E70: King's Indian: Miscellaneous lines with 4 e4, including 5 Nge2 and 5 Bd3 0-0 6 Nge2} (12. Bh6 Qe7 13. O-O-O Bd7 14. Bxg7 Kxg7 15. Nf1 Nc5 16. Ne3 f5 17. exf5 gxf5 18. Bxh5 f4 19. Nc2 Bf5 {0-1 (33) Jakab,A (2369)-Toth,E (2431) Hungary 2016}) 12... Qe7 {[%emt 0:00:00]} 13. O-O-O {[%emt 0:00:00]} Bd7 {[%emt 0:00:00] LiveBook: 4 Games} 14. Kb1 {[%emt 0:00:00]} b6 $146 {[%emt 0:00:00]} ({Predecessor:} 14... Rfd8 15. Rdg1 Nc5 16. Bxh5 gxh5 17. Nxh5 {0-1 (41) Svendsen,M (2100)-Lakat,G (2016) Budapest 2002}) 15. Rdg1 {[%emt 0:00:00]} Nc5 {[%emt 0:00:00]} 16. Bxh5 {[%emt 0:00:00]} gxh5 {[%emt 0:00:00]} 17. Nxh5 {[%emt 0:00:00]} f5 $1 {[%emt 0:00:00]} 18. Nxg7 {[%emt 0:00:00]} Kxg7 {[%emt 0:00:00]} 19. Bh6+ {[%emt 0:00:00]} Kh8 {[%emt 0:00:00]} 20. Bxf8 {[%emt 0:00:00]} Rxf8 {[%emt 0:00:00]} 21. f3 {[%emt 0:00:00]} fxe4 {[%emt 0:07:54]} 22. fxe4 {[%emt 0:00:00]} Rf4 {[%emt 0:07:44]} 23. g3 {[%emt 0:06:19]} Nxe4 {[%emt 0:01:21]} 24. Nxe4 {[%emt 0:00:00]} Rxe4 {[%emt 0:00:00]} 25. Rf1 {[%emt 0:02:58]} Rg4 {[%emt 0:00:24]} 26. Rh2 {[%emt 0:09:43]} Qg7 {[%emt 0:01:16]} 27. Rhf2 {[%emt 0:04:09]} Be8 {[%emt 0:00:00]} 28. c5 {[%emt 0:04:35]} bxc5 {[%emt 0:05:40]} 29. Qxa5 {[%emt 0:00:00]} Rxg3 {[%emt 0:01:30]} 30. Qa8 {[%emt 0:01:46]} Qg8 {[%emt 0:02:32]} 31. Ka1 {[%emt 0:00:07]} Bb5 {[%emt 0:03:52]} 32. Qxg8+ {[%emt 0:03:33]} Kxg8 {[%emt 0:00:00]} 33. Rc1 {[%emt 0:00:00]} Rg4 {[%emt 0:02:21]} 34. b3 {[%emt 0:00:14]} Kg7 {[%emt 0:00:55]} 35. a4 {[%emt 0:00:00]} Ba6 {[%emt 0:00:00]} 36. Rc3 {[%emt 0:01:30]} Nf6 {[%emt 0:00:50]} 37. Rcf3 {[%emt 0:01:04]} Nxd5 {[%emt 0:00:00]} 38. Rf7+ {[%emt 0:00:23]} Kh6 {[%emt 0:00:00]} 39. Rd2 {[%emt 0:00:41]} Rd4 {[%emt 0:00:00]} 40. Rg2 {[%emt 0:00:00]} Rf4 {[%emt 0:00:01]} 41. Rd7 {[%emt 0:00:08]} Bc8 {[%emt 0:00:00]} 42. Rd8 {[%emt 0:00:00]} Bg4 {[%emt 0:00:00]} 43. a5 {[%emt 0:00:00]} Ne3 {[%emt 0:00:00] [#]} 44. Rxg4 $1 {[%emt 0:00:00]} Rxg4 {[%emt 0:00:00]} 45. a6 {[%emt 0:00:00]} Nd5 {[%emt 0:00:00]} ({Not} 45... Rxh4 $2 46. Rh8+ Kg5 47. Rxh4 $18) 46. a7 {[%emt 0:00:00]} Rg1+ {[%emt 0:00:00]} 47. Kb2 {[%emt 0:00:00]} Rg2+ {[%emt 0:00:00]} 48. Ka1 {[%emt 0:00:00]} Rg1+ {[%emt 0:00:00]} 49. Kb2 $11 {[%emt 0:00:00]} Rg2+ {[%emt 0:00:00]} 50. Ka1 {[%emt 0:00:00]} Rg1+ {[%emt 0:00:00]} 1/2-1/2

[Event "15th Deltalift Open 2018"]
[Site "Halmstad"]
[Date "2018.05.12"]
[Round "8"]
[White "Mejvik, Jacob"]
[Black "Arman, Deniz"]
[Result "0-1"]
[ECO "A05"]
[WhiteElo "2063"]
[BlackElo "2367"]
[Annotator "ChessBase"]
[PlyCount "140"]
[EventDate "2018.??.??"]
[EventType "swiss"]
[EventCountry "SWE"]
[SourceTitle "playchess.com"]
[Source "ChessBase"]
[SourceQuality "1"]
[TimeControl "1800+12"]

1. Nf3 {[%emt 0:00:00]} Nf6 {[%emt 0:00:00]} 2. c4 {[%emt 0:00:00]} g6 {[%emt 0:00:00]} 3. Nc3 {[%emt 0:00:00]} c5 {[%emt 0:00:00]} 4. d4 {[%emt 0:00:00]} cxd4 {[%emt 0:00:00]} 5. Nxd4 {[%emt 0:00:00]} Nc6 {[%emt 0:00:00]} 6. e4 {[%emt 0:00:00]} d6 {[%emt 0:00:00]} 7. Be2 {[%emt 0:00:00]} Bg7 {[%emt 0:00:00]} 8. Be3 {[%emt 0:00:00]} O-O {[%emt 0:00:00]} 9. O-O {[%emt 0:00:00]} Bd7 {[%emt 0:00:00]} 10. h3 {[%emt 0:00:00]} Nxd4 {[%emt 0:00:00]} 11. Bxd4 {[%emt 0:00:00]} Bc6 {[%emt 0:00:00]} 12. Qc2 {[%emt 0:00:00]} Rc8 {[%emt 0:00:00]} 13. Rfd1 {[%emt 0:00:00]} a6 {[%emt 0:00:00]} 14. c5 {[%emt 0:00:00]} Qa5 {[%emt 0:00:00]} 15. cxd6 {[%emt 0:00:00]} exd6 {[%emt 0:00:00]} 16. Bf3 {[%emt 0:00:00]} Rfe8 {[%emt 0:00:00]} 17. Qd3 {[%emt 0:00:00]} Rcd8 {[%emt 0:05:00]} 18. Rac1 {[%emt 0:00:00]} Qg5 {[%emt 0:01:37]} 19. b4 {[%emt 0:00:00]} Qh4 {[%emt 0:01:06]} 20. Re1 {[%emt 0:00:00]} Re6 {[%emt 0:03:14]} 21. Kh2 {[%emt 0:00:00]} g5 {[%emt 0:02:07]} 22. g3 {[%emt 0:02:10]} Qh6 {[%emt 0:00:00]} 23. Bg2 {[%emt 0:11:23]} Rde8 {[%emt 0:02:09]} 24. a4 {[%emt 0:00:58]} g4 {[%emt 0:05:53]} 25. h4 {[%emt 0:04:48]} Qg6 {[%emt 0:00:00]} 26. b5 {[%emt 0:00:05]} axb5 {[%emt 0:00:00]} 27. axb5 {[%emt 0:00:00]} Bxe4 {[%emt 0:01:24]} 28. Nxe4 {[%emt 0:00:58]} Nxe4 {[%emt 0:04:52]} 29. Bxe4 {[%emt 0:01:51]} Rxe4 {[%emt 0:00:00]} 30. Rxe4 {[%emt 0:00:00]} Qxe4 {[%emt 0:02:56]} 31. Qxe4 {[%emt 0:00:00]} Rxe4 {[%emt 0:00:00]} 32. Rc8+ {[%emt 0:00:00]} Bf8 {[%emt 0:00:00]} 33. Be3 {[%emt 0:00:00]} Kg7 {[%emt 0:00:00]} 34. Rb8 {[%emt 0:02:15]} Re7 {[%emt 0:00:00]} 35. Bd4+ {[%emt 0:00:00]} f6 {[%emt 0:00:00]} 36. b6 {[%emt 0:01:26]} Kf7 {[%emt 0:03:05]} 37. Bxf6 {[%emt 0:00:04]} Re8 {[%emt 0:03:02]} 38. Rxe8 {[%emt 0:02:10]} Kxe8 {[%emt 0:00:00]} 39. Kg2 {[%emt 0:00:04]} Kf7 {[%emt 0:00:53]} 40. Bd4 {[%emt 0:00:43]} Ke6 {[%emt 0:00:00]} 41. f3 {[%emt 0:00:31]} Kf5 {[%emt 0:00:00]} 42. Kf2 {[%emt 0:00:28]} h5 {[%emt 0:00:00]} 43. Ke2 {[%emt 0:02:21]} d5 {[%emt 0:00:00]} 44. Kf2 {[%emt 0:00:35]} Bd6 {[%emt 0:00:00]} 45. Kg2 {[%emt 0:00:19]} Bb4 {[%emt 0:00:00]} 46. Kf2 {[%emt 0:00:00]} Ba5 {[%emt 0:00:01]} 47. Ke2 {[%emt 0:00:00]} Bb4 {[%emt 0:01:13]} 48. Kf2 {[%emt 0:00:00]} gxf3 {[%emt 0:00:34]} 49. Kxf3 {[%emt 0:00:00]} Be1 {[%emt 0:00:00]} 50. Bb2 {[%emt 0:01:57]} Bb4 {[%emt 0:00:00]} 51. Bd4 {[%emt 0:00:28]} Be7 {[%emt 0:00:32]} 52. Be3 {[%emt 0:02:31]} Bd6 {[%emt 0:00:17]} 53. Bd4 {[%emt 0:00:15]} Bb8 {[%emt 0:00:15]} 54. Bb2 {[%emt 0:00:34]} Bd6 {[%emt 0:00:03]} 55. Bd4 {[%emt 0:00:00]} Bf8 {[%emt 0:00:00]} 56. Be3 {[%emt 0:00:25]} Bg7 {[%emt 0:00:00]} 57. Bc5 {[%emt 0:01:31]} Be5 {[%emt 0:00:00]} 58. Be7 {[%emt 0:00:00]} Bd4 {[%emt 0:00:00]} 59. Bd8 {[%emt 0:00:00]} Bg1 {[%emt 0:00:00]} 60. Kg2 {[%emt 0:00:00]} Be3 {[%emt 0:00:00]} 61. Kf3 {[%emt 0:00:00]} Bc5 {[%emt 0:00:00]} 62. Bc7 {[%emt 0:00:00]} d4 {[%emt 0:00:00]} 63. Ke2 {[%emt 0:00:00]} Ke4 {[%emt 0:00:00]} 64. Kd2 {[%emt 0:00:00]} Bb4+ {[%emt 0:00:00]} 65. Ke2 {[%emt 0:00:00]} d3+ {[%emt 0:00:00]} 66. Kd1 {[%emt 0:00:00]} Bc3 {[%emt 0:00:00]} 67. Kc1 {[%emt 0:00:00]} Kf3 {[%emt 0:00:00]} 68. Kd1 {[%emt 0:00:00]} Ba5 {[%emt 0:00:00]} 69. Bb8 {[%emt 0:00:00]} Bxb6 {[%emt 0:00:00]} 70. Kd2 {[%emt 0:00:00]} Ke4 {[%emt 0:00:00]} 0-1

[Event "15th Deltalift Open 2018"]
[Site "Halmstad"]
[Date "2018.05.12"]
[Round "8"]
[White "Hakansson, Stefan"]
[Black "Cramling Bellon, Anna"]
[Result "0-1"]
[ECO "D00"]
[WhiteElo "2010"]
[BlackElo "2153"]
[Annotator "NA"]
[PlyCount "68"]
[EventDate "2018.??.??"]
[EventType "swiss"]
[EventCountry "SWE"]
[SourceTitle "playchess.com"]
[Source "ChessBase"]
[SourceQuality "1"]
[TimeControl "1800+12"]

1. d4 {[%emt 0:00:00]} d5 {[%emt 0:00:00]} 2. Bf4 {[%emt 0:00:00]} Nf6 {[%emt 0:00:00]} 3. e3 {[%emt 0:00:00]} c5 {[%emt 0:00:00]} 4. c3 {[%emt 0:00:00]} Nc6 {[%emt 0:00:00]} 5. Nd2 {[%emt 0:00:00] D00: 1 d4 d5: Unusual lines} cxd4 {[%emt 0:00:00]} (5... Bf5 6. Ngf3 e6 7. Be2 Bd6 8. dxc5 Bxc5 9. Nd4 Bg6 10. Qa4 O-O 11. Nxc6 bxc6 12. Qxc6 Rc8 13. Qa4 Re8 14. O-O e5 {0-1 (57) Le,Q (2737)-Ding,L (2777) Riadh 2017}) 6. exd4 {[%emt 0:00:00]} Bf5 {[%emt 0:00:00]} 7. Ngf3 {[%emt 0:00:00]} e6 {[%emt 0:00:00]} 8. Be2 {[%emt 0:00:00]} Bd6 {[%emt 0:00:00]} 9. Bxd6 {[%emt 0:00:00] LiveBook: 4 Games} Qxd6 {[%emt 0:00:00]} 10. Nh4 {[%emt 0:00:00]} Bg6 {[%emt 0:00:00]} 11. Nxg6 $146 {[%emt 0:00:00]} ({Predecessor:} 11. O-O Be4 12. Nxe4 dxe4 13. Qc1 {½-½ (37) Paehtz,E (2464)-Guo,Q (2396) Riadh 2017}) 11... hxg6 {[%emt 0:00:00]} 12. h3 {[%emt 0:00:00]} g5 {[%emt 0:00:00]} 13. Nf1 {[%emt 0:00:00]} Ne4 {[%emt 0:00:00]} 14. Bf3 {[%emt 0:00:00]} f5 {[%emt 0:00:00]} 15. Bxe4 {[%emt 0:00:00]} dxe4 {[%emt 0:00:00]} 16. Ng3 {[%emt 0:00:00]} O-O-O {[%emt 0:00:00]} 17. Qe2 {[%emt 0:00:14]} Qd5 {[%emt 0:01:06]} 18. b3 {[%emt 0:02:40]} e5 {[%emt 0:08:50]} 19. Nxf5 {[%emt 0:02:08]} exd4 {[%emt 0:00:51]} 20. Nxd4 {[%emt 0:00:08]} Ne5 {[%emt 0:07:25]} 21. O-O-O {[%emt 0:05:15]} Nd3+ $16 {[%emt 0:00:18]} 22. Rxd3 {[%emt 0:10:00]} exd3 {[%emt 0:00:00]} 23. Qe6+ {[%emt 0:00:00]} Qxe6 {[%emt 0:08:23]} 24. Nxe6 {[%emt 0:00:00]} Rd5 {[%emt 0:00:00]} 25. Nd4 {[%emt 0:00:00]} g4 {[%emt 0:01:25]} 26. Rg1 {[%emt 0:06:43]} Rg5 {[%emt 0:03:54]} 27. f4 {[%emt 0:06:51]} gxf3 {[%emt 0:00:00]} 28. Nxf3 {[%emt 0:00:00]} Rg3 {[%emt 0:00:05]} 29. Kd2 {[%emt 0:00:05]} Rf8 {[%emt 0:00:14]} 30. Rf1 {[%emt 0:01:09]} Rxg2+ {[%emt 0:00:20]} 31. Kxd3 {[%emt 0:00:00]} Rg3 {[%emt 0:01:37]} 32. Ke4 {[%emt 0:00:00]} Rxh3 {[%emt 0:00:00]} 33. a4 {[%emt 0:00:12]} g5 {[%emt 0:00:00]} 34. Nxg5 {[%emt 0:00:39]} Rh4+ {[%emt 0:00:00]} 0-1

[Event "15th Deltalift Open 2018"]
[Site "Halmstad"]
[Date "2018.05.12"]
[Round "8"]
[White "Karlsson, Roger"]
[Black "Brzezinski, Adam"]
[Result "0-1"]
[ECO "C01"]
[WhiteElo "1879"]
[BlackElo "2152"]
[Annotator "NA"]
[PlyCount "110"]
[EventDate "2018.??.??"]
[EventType "swiss"]
[EventCountry "SWE"]
[SourceTitle "playchess.com"]
[Source "ChessBase"]
[SourceQuality "1"]
[TimeControl "1800+12"]

1. e4 {[%emt 0:00:00]} e6 {[%emt 0:00:00]} 2. d4 {[%emt 0:00:00]} d5 {[%emt 0:00:00]} 3. exd5 {[%emt 0:00:00]} exd5 {[%emt 0:00:00]} 4. Nc3 {[%emt 0:00:00]} Nf6 {[%emt 0:00:00]} 5. Bd3 {[%emt 0:00:00]} Be7 {[%emt 0:00:00]} 6. Bf4 {[%emt 0:00:00] C01: French: Exchange Variation} O-O {[%emt 0:00:00]} 7. Nge2 {[%emt 0:00:00] LiveBook: 5 Games} Re8 {[%emt 0:00:00]} (7... Nc6 8. a3 a6 {½-½ (8) Pancevski,F (2494)-Nyzhnyk,I (2622) Chicago 2015}) 8. O-O {[%emt 0:00:00]} Nh5 $146 {[%emt 0:00:00]} ({Predecessor:} 8... a6 9. Ng3 Nc6 10. Be2 Be6 11. a3 Bf8 12. Qd2 g6 13. Rad1 b5 14. Na2 {0-1 (55) Vibbert,S (2350)-Tan,J (2469) Chicago 2016}) 9. Be5 {[%emt 0:00:00]} Nc6 {[%emt 0:00:00]} 10. Nf4 {[%emt 0:00:00]} (10. Nxd5 $5 Qxd5 11. Nc3 $14) 10... Nxf4 {[%emt 0:00:00]} 11. Bxf4 {[%emt 0:00:00]} Be6 {[%emt 0:00:00]} 12. Ne2 {[%emt 0:00:00]} Nb4 {[%emt 0:00:00]} 13. Bb5 {[%emt 0:00:00]} c6 {[%emt 0:00:00]} 14. Ba4 {[%emt 0:00:00]} Bf5 {[%emt 0:00:00]} 15. a3 {[%emt 0:00:00]} Na6 {[%emt 0:00:00]} 16. Ng3 {[%emt 0:00:00]} Bg6 {[%emt 0:00:00]} 17. c3 {[%emt 0:00:00]} Nc7 {[%emt 0:00:00]} 18. Bc2 {[%emt 0:00:00]} Ne6 {[%emt 0:00:00]} 19. Bd2 {[%emt 0:02:03]} Bd6 {[%emt 0:00:00]} 20. Bxg6 {[%emt 0:02:48]} hxg6 {[%emt 0:00:00]} 21. Qg4 {[%emt 0:01:16]} Qd7 {[%emt 0:00:00]} 22. Rae1 {[%emt 0:02:04]} Nf8 {[%emt 0:00:00]} 23. Qxd7 {[%emt 0:00:38]} Nxd7 {[%emt 0:00:00]} 24. f3 {[%emt 0:09:40]} Bxg3 {[%emt 0:00:00]} 25. hxg3 {[%emt 0:00:29]} b5 {[%emt 0:00:00]} 26. Rxe8+ {[%emt 0:01:54]} Rxe8 {[%emt 0:00:00]} 27. Kf2 {[%emt 0:00:00]} Nb6 {[%emt 0:00:00]} 28. Re1 {[%emt 0:00:44]} Rxe1 {[%emt 0:00:00]} 29. Kxe1 {[%emt 0:00:00]} a5 {[%emt 0:00:00]} 30. Ke2 {[%emt 0:02:09]} a4 {[%emt 0:00:00]} 31. Bc1 {[%emt 0:00:20]} f6 {[%emt 0:00:00]} 32. g4 {[%emt 0:02:44]} Kf7 {[%emt 0:00:00]} 33. g3 {[%emt 0:02:29]} Nc4 {[%emt 0:00:00]} 34. Kd3 {[%emt 0:01:25]} Ke6 {[%emt 0:00:00]} 35. Kc2 {[%emt 0:00:00]} g5 $15 {[%emt 0:00:00]} 36. b3 {[%emt 0:02:14]} Na5 {[%emt 0:00:00]} 37. bxa4 {[%emt 0:00:57]} bxa4 {[%emt 0:00:00]} 38. Kd3 {[%emt 0:00:29]} Nc4 {[%emt 0:00:00]} 39. f4 {[%emt 0:01:51]} f5 {[%emt 0:00:00]} 40. gxf5+ {[%emt 0:01:02]} Kxf5 {[%emt 0:00:00]} 41. fxg5 {[%emt 0:00:00]} g6 {[%emt 0:00:00]} 42. Ke2 {[%emt 0:00:00]} Ke4 {[%emt 0:00:00]} 43. g4 {[%emt 0:00:00]} Nd6 {[%emt 0:00:00]} 44. Kd2 {[%emt 0:00:00]} Kf3 {[%emt 0:00:00]} 45. Kd3 {[%emt 0:00:00]} Nc4 {[%emt 0:00:00]} 46. Kc2 {[%emt 0:00:00]} Ke2 {[%emt 0:00:00]} 47. Bf4 {[%emt 0:00:00]} Ne3+ {[%emt 0:00:00]} 48. Kb2 {[%emt 0:00:00]} Kd3 {[%emt 0:00:00]} 49. Kc1 {[%emt 0:01:48]} Nc4 {[%emt 0:00:00]} 50. Bc7 {[%emt 0:00:20]} Kxc3 {[%emt 0:00:00]} 51. Be5 {[%emt 0:00:13]} Nxa3 {[%emt 0:00:00]} 52. Bd6 {[%emt 0:00:10]} Nb5 {[%emt 0:00:00]} 53. Bc5 {[%emt 0:00:13]} Nxd4 {[%emt 0:00:00]} 54. Kb1 {[%emt 0:00:02]} Ne2 {[%emt 0:00:00]} 55. Ka1 {[%emt 0:00:20]} d4 {[%emt 0:00:00]} 0-1